Cogmind - Beta 14 @@@ ROGUE MODE // 2024.12.25 @ 10:11:05 Player: mehbruh Result: Core destroyed Performance ------------- Evolutions (0) 0 Regions Visited (1) 200 Robots Destroyed (16) 80 Value Destroyed (425) 425 Prototype IDs (2) 40 Alien Tech Used (0) 0 Bonus (0) 0 TOTAL SCORE: 745 Bonus ------- None Cogmind --------- Core Integrity 0/250 Matter 236/300 Energy 100/100 System Corruption 19% Temperature Cool (0) Movement Core (500) Ox9 Location -10/Materials Parts ------- > --- POWER (1) -------- Ion Engine (fused) > --- PROPULSION (2) --- Light Treads > --- UTILITY (2) ------ Large Storage Unit Seismic Detector > --- WEAPON (2) ------- Small Laser Assault Rifle > --- INVENTORY (15) --- Ion Engine Compact Wheel Compact Wheel Medium Laser Small Laser Light Assault Rifle Grenade Launcher Datajack Hammer Peak State ------------ > --- POWER ------------ Ion Engine > --- PROPULSION ------- Light Treads Light Treads > --- UTILITY ---------- Small Storage Unit Seismic Detector > --- WEAPON ----------- Small Laser Assault Rifle > --- INVENTORY -------- Ion Engine Wheel Compact Wheel Small Laser [Rating: 7] Favorites ----------- Power Ion Engine Engine Ion Engine Propulsion Light Treads Treads Light Treads Utility Seismic Detector Device Seismic Detector Storage Large Storage Unit Weapon Assault Rifle Energy Gun Small Laser Ballistic Gun Assault Rifle Special Melee Weapon Datajack Build | -11 -10 ------- Run | Yrd Mat Slots Evolved . | . . Power . | . . Propulsion . | . . Utility . | . . Weapon . | . . Parts Attached 14 | 7 7 Power 2 | 1 1 Engine 2 | 1 1 Core . | . . Reactor . | . . Propulsion 4 | 2 2 Treads 4 | 2 2 Leg . | . . Wheel . | . . Hover . | . . Flight . | . . Utility 3 | 2 1 Device 1 | 1 . Storage 2 | 1 1 Processor . | . . Hackware . | . . Protection . | . . Artifact . | . . Weapon 5 | 2 3 Energy Gun 2 | 1 1 Energy Cannon . | . . Ballistic Gun 2 | 1 1 Ballistic Cannon . | . . Launcher . | . . Special Weapon . | . . Impact Weapon . | . . Slashing Weapon . | . . Piercing Weapon . | . . Special Melee Weapon 1 | . 1 Unidentified Prototypes . | . . Parts Lost 2 | . 2 Power . | . . Propulsion 1 | . 1 Utility . | . . Weapon 1 | . 1 Highest Loss Streak 1 | . 1 To Critical Strikes . | . . Average Slot Usage (%) 98 | . 98 Engine 13 | . 13 Treads 26 | . 26 Device 14 | . 14 Storage 14 | . 14 Energy Gun 13 | . 13 Ballistic Gun 14 | . 14 Peak Build Rating 7 | 7 7 Average Rating 6 | 5 6 On Entrance 3 | . 7 Naked Turns . | . . Heaviest Build 29 | 14 29 Greatest Support 40 | 40 40 Greatest Overweight (x) 1 | 1 . Average Overweight (x) . | . . Largest Inventory Capacity 15 | 8 15 Average Capacity 12 | 7 12 Most Carried 9 | 5 9 Average Carried 7 | 3 7 Final Capacity 15 | 8 15 Final Carried 9 | 4 9 Class Distribution -------------------- 100% | Mutant Dominant Class ---------------- Mutant | -10/Materials Resources | -11 -10 ----------- Run | Yrd Mat Matter Collected 484 | 211 273 Remotely . | . . Salvage Created 584 | 34 550 Parts 34 | 8 26 Haulers Intercepted 1 | . 1 Recyclers Shooed 3 | . 3 Parts Field Recycled . | . . Retrieved Matter . | . . Parts Self-Destructed . | . . Prevented . | . . Kills | -11 -10 ------- Run | Yrd Mat Combat Hostiles Destroyed 13 | . 13 Guns 13 | . 13 Classes Destroyed 4 | 1 3 Tunneler 2 | 2 . Hauler 1 | . 1 Swarmer 3 | . 3 Grunt 10 | . 10 Best Kill Streak 3 | 2 3 Combat Bots Only 3 | . 3 Max Kills in Single Turn 1 | 1 1 Gunslinging . | . . Exploded . | . . Melee . | . . Uniques/NPCs Destroyed . | . . Combat | -11 -10 -------- Run | Yrd Mat Hostile Shots Fired 60 | . 60 Missed 19 | . 19 Damage Taken 767 | . 767 Core 255 | . 255 Absorbed by Shields . | . . Regen/Repaired (Parts) 139 | . 139 Core Remaining (%) 100 | 100 . Volleys Fired 55 | 7 48 Largest 2 | 2 2 Hottest 60 | 60 60 Shots Fired 111 | 14 97 Gun 111 | 14 97 Cannon . | . . Launcher . | . . Special . | . . Kinetic 55 | 7 48 Thermal 56 | 7 49 Explosive . | . . Electromagnetic . | . . Robot Hit Streak 13 | 5 13 Robot Miss Streak 2 | 2 2 Penetration Max . | . . Secondary Targets 1 | . 1 Max Gunslinging Chain 1 | . 1 Shots Hit Robots 84 | 10 74 Core Hits 31 | 2 29 Critical Kills . | . . Critical Parts Destroyed 1 | . 1 Critical Strikes 1 | . 1 Destroy 1 | . 1 Melee Attacks . | . . Impact . | . . Slashing . | . . Piercing . | . . Sneak Attacks . | . . Combat Hostiles . | . . Follow-up Attacks . | . . Damage Inflicted 1063 | 123 940 Guns 1000 | 123 877 Cannons . | . . Explosions . | . . Melee . | . . Ramming 63 | . 63 Kinetic 508 | 76 432 Thermal 492 | 47 445 Explosive . | . . Electromagnetic . | . . Impact . | . . Slashing . | . . Piercing . | . . Highest Corruption 19 | . 19 Average Corruption 3 | . 3 Corruption Purged . | . . Corruption Blocked . | . . Effects 22 | . 22 Message Errors 3 | . 3 Matter Fused 10 | . 10 Heat Flow Errors 2 | . 2 Parts Rejected 2 | . 2 Parts Fused 1 | . 1 Data Loss (minor) 3 | . 3 Misfires 1 | . 1 Overload Shots . | . . Overflow Damage . | . . Projectiles . | . . Explosions . | . . Melee . | . . Knockbacks . | . . Impact . | . . Kinetic . | . . Secondary . | . . Self-Inflicted Damage 39 | . 39 Shots . | . . Rammed 9 | . 9 Targets Rammed 9 | . 9 Kicked . | . . Crushed . | . . Highest Temperature 164 | . 164 Average Temperature 37 | . 37 Received Heat Transfer 270 | . 270 Siege Activations . | . . Robots Corrupted . | . . Combat Hostiles . | . . Parts Fried . | . . Impact Corruptions . | . . Robots Melted . | . . Combat Hostiles . | . . Parts Melted 1 | . 1 Heat Transferred 1125 | 100 1025 Parts Sabotaged . | . . Parts Stolen . | . . Parts Stripped . | . . Power Chain Reactions . | . . Alert | -11 -10 ------- Run | Yrd Mat Peak Influence 262 | 10 262 Initial 6 | . 6 Average 95 | 3 103 Maximum Alert Level 1 | . 1 Low Security (%) 83 | 100 81 Level 1 16 | . 18 Level 2 . | . . Level 3 . | . . Level 4 . | . . Level 5 . | . . High Security . | . . Max Security . | . . Squads Dispatched 2 | . 2 Investigation . | . . Extermination . | . . Reinforcement 2 | . 2 Assault . | . . Garrison . | . . Intercept . | . . Searches Triggered . | . . Construction Impeded . | . . Haulers Reinforced . | . . Active Scanning Responses . | . . Cargo Convoy Interrupts . | . . Stealth | -11 -10 --------- Run | Yrd Mat Distress Signals 1 | . 1 Communications Jammed . | . . Distress Signals . | . . Times Spotted 26 | . 26 Peak Tracking Total 6 | . 6 Tactical Retreats 1 | . 1 Traps | -11 -10 ------- Run | Yrd Mat Traps Triggered 2 | . 2 Indirectly . | . . Trap Hack Attempts 30 | . 30 Triggered . | . . Disarmed . | . . Reprogrammed 3 | . 3 Reused 1 | . 1 Traps Extracted . | . . Installed . | . . Triggered 1 | . 1 Machines | -11 -10 ---------- Run | Yrd Mat Machines Disabled . | . . Max in Single Turn . | . . Machines Repaired . | . . Machines Dismantled . | . . Machines Sabotaged . | . . Overloaded Fab Kills . | . . Hacking | -11 -10 --------- Run | Yrd Mat Machines Accessed 6 | . 6 Terminals 5 | . 5 Fabricators . | . . Repair Stations 1 | . 1 Recycling Units . | . . Scanalyzers . | . . Garrison Access . | . . Total Hacks 24 | . 24 Successful 15 | . 15 Failed 8 | . 8 Catastrophic . | . . Database Lockouts 1 | . 1 Manual 17 | . 17 Terminals 22 | . 22 Fabricators . | . . Repair Stations 2 | . 2 Recycling Units . | . . Scanalyzers . | . . Garrison Access . | . . Terminal Hacks 7 | . 7 Part Schematic 1 | . 1 Robot Analysis 1 | . 1 Prototype ID Bank 1 | . 1 Alert Level 1 | . 1 Unreport Threat 2 | . 2 Locate Traps 1 | . 1 Fabricator Hacks . | . . Repair Station Hacks 2 | . 2 Scan Component 1 | . 1 Repair 1 | . 1 Recycling Unit Hacks . | . . Scanalyzer . | . . Garrison Access Hacks . | . . Unauthorized Hacks 6 | . 6 Terminals 6 | . 6 Botnet 2 | . 2 Skim 4 | . 4 Fabricators . | . . Repair Stations . | . . Recycling Units . | . . Scanalyzers . | . . Garrison Access . | . . Data Cores Recovered . | . . Used . | . . Hacking Detections 5 | . 5 Full Trace Events . | . . Feedback Events . | . . Feedback Blocked . | . . Robot Schematics Acquired . | . . Robots Built . | . . Authchips . | . . Time . | . . Total Robot Build Rating . | . . Part Schematics Acquired 1 | . 1 Parts Built . | . . Authchips . | . . Time . | . . Total Part Build Rating . | . . Parts Repaired 1 | . 1 Time 26 | . 26 Parts Recycled . | . . Recycled Matter . | . . Retrieved Matter . | . . Retrieved Components . | . . Parts Scanalyzed . | . . Part Schematics Acquired . | . . Parts Damaged . | . . Bothacking | -11 -10 ------------ Run | Yrd Mat Used RIF Installer . | . . Robots Hacked . | . . Non-combat . | . . Combat . | . . Robot Hacks Applied . | . . Relay Couplers Released . | . . Fabnet Peak Effective % . | . . Robots Rewired . | . . Allies Hacked . | . . Hacks Repelled . | . . Allies | -11 -10 -------- Run | Yrd Mat Total Allies . | . . Largest Group . | . . Highest-Rated Group . | . . Highest-Rated Ally . | . . Total Orders . | . . Ally Attacks . | . . Total Damage . | . . Kills . | . . Allies Corrupted . | . . Allies Melted . | . . Intel | -11 -10 ------- Run | Yrd Mat Robot Analysis Total 1 | . 1 Derelict Logs Recovered . | . . Drone Launches . | . . Drone Recoveries . | . . Exploration | -11 -10 ------------- Run | Yrd Mat Turns Passed 1282 | 113 1169 Spaces Moved 551 | 55 496 Core 12 | 12 . Treads 539 | 43 496 Legs . | . . Wheels . | . . Hover . | . . Flight . | . . Fastest Speed 50 | 50 160 Average Speed 157 | 137 160 Slowest Speed 160 | 160 160 Overloaded Moves . | . . Propulsion Burnouts . | . . Robots Hopped . | . . Cave-ins Triggered . | . . Exploration Rate (%) 49 | 5 93 Regions Visited 1 Branch Regions . Pre-discovered Areas . | . . Known Exits Taken . | . . Unknown Exits Taken 1 | 1 . Scrap Searched . | . . Spaces Dug . | . . Terrain Destroyed . | . . Melee . | . . Projectile . | . . AOE . | . . Terrain Rammed 25 | . 25 Walls Destroyed . | . . Machines Disabled . | . . Actions | -11 -10 --------- Run | Yrd Mat Total 761 | 76 685 Wait 63 | 1 62 Move 550 | 54 496 Hop . | . . Pick Up 14 | 7 7 Fast Attach 7 | 4 3 Attach 4 | 3 1 Detach . | . . Swap 3 | . 3 Drop 2 | . 2 Fire 55 | 7 48 Melee . | . . Ram 24 | . 24 Kick . | . . Crush 9 | . 9 Escape Stasis . | . . Rewire . | . . Trap 30 | . 30 Miscellaneous . | . . Route ------- -11/Scrapyard -10/Materials (discovered 5 exits: [*Mat x3] / [*Min x2]) History --------- Turn | Location | Event 29 | -11/Scrapyard | Discovered new exit (range 15) 114 | -11/Scrapyard | Entered Materials 302 | -10/Materials | Discovered new exit (range 15) 305 | -10/Materials | Build established: Mutant 408 | -10/Materials | Discovered new exit (range 3) 744 | -10/Materials | Discovered new exit (range 13) 833 | -10/Materials | Repaired Lgt. Treads 914 | -10/Materials | Central database locked down 1054 | -10/Materials | Discovered new exit (range 16) 1146 | -10/Materials | Discovered new exit (range 15) 1184 | -10/Materials | Core integrity fell below 50% 1214 | -10/Materials | System corruption reached 10% 1244 | -10/Materials | Core integrity fell below 20% 1283 | -10/Materials | Core destroyed Last Messages --------------- 01243_ Destabilizing: Core damaged (-12). 01243_ Destabilizing: System corrupted (+1). 01246_ System corrupted: Heat flow error (+189). 01248_ Slammed into Wall. 01248_ Destabilizing: Core damaged (-10). 01253_ Slammed into Wall. 01258_ Destabilizing: Core damaged (-5). 01258_ Destabilizing: Core damaged (-2). 01263_ Slammed into Wall. 01263_ Destabilizing: System corrupted (+1). 01268_ Slammed into Wall. 01268_ Destabilizing: Core damaged (-7). 01271_ S6|LZKCFTG, PPVK=QC5N1X2UL 01273_ Slammed into Wall. 01273_ Destabilizing: Core damaged (-12). 01278_ Slammed into Wall. 01278_ Destabilizing: System corrupted (+2). 01283_ Slammed into Wall. 01283_ Destabilizing: Core damaged (-7). Map ----- +----------------------------------------------------+ | | | | | | | | | | | | | | | | | | | | | | | | | ??????????????????????????????????????? | | ??????????????????????????????????????? | | ??????????????????????????????????????? | | ?????????#######??????????????????????? | | ?????????# #??????????????????????? | | ?????????#"" #??????????????????????? | | ?????????#"T #???????????####???????? | | ?????????#"" #?????????##"""##??????? | | ???####### #????????##"|||"##?????? | | #### # #????????#"" ""#?????? | | # #??"""???# #?????? | | % + ===#??"""???# < #?????? | | ! # == #??"""???# #?????? | | #### # == #?? ???#@ #?????? | | ?######### #?? ???## ##?????? | | ?# !??# ####+###??## ##??????? | | #= ! ?####+### ##### #???????? | | # #### ######### | | # "T" + % # # | | # """ # # # | | # #+####### ##### # # | | ?######?# ##% ##???# # # | | ????????# ## #????# # # | | ????????# ## #????# + # | | ????????# ! ## #????# # """ # | | ????????# ## ##???## ## """"" # | | ????????######+## #????# ## """"" ? | | ???????????# #????# ## """""?? | | ???????????# #????# ## """ ?? | | ???????????# #????# ######???? | | ???????????# ## #????# #????????? | | ?########### ########????# #????????? | | ?# ## ###########?# #????????? | | ?# ## ## ### #????????? | | ?# ## ## # #????????? | | ?# # # """# ########## | | ?# # #[ """# # # | | ?# + %+ """# # "T" # | +----------------------------------------------------+ Best States ------------- Heat Dissipation 25 Energy Generation 10 Energy Capacity 250 Matter Stores 300 Matter Capacity 300 Sight Range 16 Terrain Scan Density 10 Evasion (%) 40 Recoil Reduction 2 Item Schematics ----------------- Huge Storage Unit | -10/Materials | Hacked Robot Schematics ------------------ None Fabricated ------------ Nothing Alien Tech Used ----------------- None Achievements -------------- None Challenges ------------ None Game ------ Seed ResetFissionObliterator Manual? 0 Play Time 00:10:55 Cumulative 68.1 hours Start 2024.12.25 @ 10:02:29 End 2024.12.25 @ 10:11:05 Sessions 1 Manual Loads 0 Difficulty Rogue Special Mode None Game No. 70 Rogue 70 Adventurer 0 Explorer 0 Win Type - Total 2 Types 2/0/0/0/0/0/0/0/0 Lore% 33 Gallery% 45 Achievement% 44 Wizard Run 0 Options --------- Layout 1 ASCII 0 Keyboard 0 Movement Arrows Keybinds 0 Fullscreen 1 Font 24/Smallcaps Map View 50x35 Zoom Use 0% Tactical HUD 1 Map Filters NONE Filters NONE Steam 1 RUN: 2181189d-bba7-4bf5-8b18-4be18a5610ad